[Event "Fagernes Chess GM-Swiss 2025"]
[Site "Fagernes"]
[Date "2025.04.16"]
[Round "4.24"]
[White "Oksendal, Martin"]
[Black "Verbin, Valentina"]
[Result "1/2-1/2"]
[Annotator "RC"]
[ECO "C11"]
[WhiteElo "2250"]
[BlackElo "2113"]
[PlyCount "108"]
[EventDate "2025.04.12"]
[EventCountry "NOR"]
[SourceTitle "playchess.com"]
[Source "ChessBase"]
[SourceQuality "1"]
[TimeControl "40/6000+30:2400+30"]

1. e4 {[%emt 0:02:37]} e6 {[%emt 0:00:32]} 2. d4 {[%emt 0:00:11]} d5 {[%emt 0:00:12]} 3. Nc3 {[%emt 0:00:14]} Nf6 {[%emt 0:00:20]} 4. e5 {[%emt 0:00:03]} Nfd7 {[%emt 0:00:08]} 5. f4 {[%emt 0:00:02]} c5 {[%emt 0:00:12]} 6. Nf3 {[%emt 0:00:02]} Nc6 {[%emt 0:00:12]} 7. Be3 {[%emt 0:00:02]} a6 {[%emt 0:01:04]} 8. a3 {[%emt 0:00:42]} cxd4 {[%emt 0:03:45]} 9. Nxd4 {[%emt 0:00:58]} Bc5 {[%emt 0:00:36]} 10. Qd2 {[%emt 0:03:17]} Nxd4 {[%emt 0:02:30]} 11. Bxd4 {[%emt 0:00:25]} Bxd4 {[%emt 0:01:06]} 12. Qxd4 {[%emt 0:00:01]} Qb6 {[%emt 0:00:13]} 13. Qxb6 {[%emt 0:00:30]} Nxb6 {[%emt 0:00:06]} 14. Bd3 {[%emt 0:01:00]} Bd7 {[%emt 0:04:52]} 15. Kd2 {[%emt 0:05:41]} Ke7 {[%emt 0:12:00]} 16. b3 {[%emt 0:14:00]} h5 {[%emt 0:03:56]} 17. h4 {[%emt 0:15:09]} g6 {[%emt 0:05:10]} 18. Ne2 {[%emt 0:00:41]} Nc8 {[%emt 0:22:39]} 19. g4 {[%emt 0:26:35]} hxg4 {[%emt 0:06:25]} 20. Rag1 {[%emt 0:08:28]} Bb5 {[%emt 0:03:30]} 21. Rxg4 {[%emt 0:03:03]} Bxd3 {[%emt 0:04:17]} 22. Kxd3 {[%emt 0:02:02]} Na7 {[%emt 0:02:23]} 23. Ng3 {[%emt 0:07:53]} Rac8 {[%emt 0:09:15]} 24. h5 {[%emt 0:04:15]} gxh5 {[%emt 0:01:23]} 25. Rxh5 {[%emt 0:03:00]} Rxh5 {[%emt 0:09:55]} 26. Nxh5 {[%emt 0:00:02]} Nb5 {[%emt 0:01:12]} 27. a4 {[%emt 0:02:08]} Na3 {[%emt 0:06:55]} 28. Rg2 {[%emt 0:01:34]} b5 {[%emt 0:03:33]} 29. axb5 {[%emt 0:00:37]} axb5 {[%emt 0:02:20]} 30. Nf6 {[%emt 0:05:00]} b4 {[%emt 0:00:12]} 31. Rg8 {[%emt 0:00:47]} Rxg8 {[%emt 0:02:02]} 32. Nxg8+ {[%emt 0:00:01]} Kd8 {[%emt 0:02:02]} 33. Nh6 {[%emt 0:02:58]} Ke7 {[%emt 0:00:07]} 34. Ng4 {[%emt 0:00:19]} Nb5 {[%emt 0:00:50]} 35. Ke3 {[%emt 0:00:57]} Na3 {[%emt 0:01:02]} 36. Kd2 {[%emt 0:00:28]} Kd7 {[%emt 0:00:52]} 37. Nf2 {[%emt 0:01:51]} Kc6 {[%emt 0:00:32]} 38. Nd3 {[%emt 0:00:25]} Kb5 {[%emt 0:00:04]} 39. Ne1 {[%emt 0:00:57]} Kc6 {[%emt 0:01:02]} 40. Nf3 {[%emt 0:00:21]} Kd7 {[%emt 0:00:31]} 41. Ne1 {[%emt 0:11:53]} Nb1+ {[%emt 0:10:30]} 42. Kc1 {[%emt 0:09:11]} Nc3 {[%emt 0:01:01]} 43. Nd3 {[%emt 0:00:18]} Kc6 {[%emt 0:10:59]} 44. Nxb4+ {[%emt 0:02:35]} Kc5 {[%emt 0:00:01]} 45. Nd3+ {[%emt 0:00:13]} Kd4 {[%emt 0:00:02]} 46. Kd2 {[%emt 0:01:29]} Nb1+ {[%emt 0:02:38]} 47. Ke2 {[%emt 0:01:56]} Kc3 {[%emt 0:03:00]} 48. Ne1 {[%emt 0:04:38]} Na3 {[%emt 0:00:12]} 49. Kd1 {[%emt 0:00:26]} Nb5 {[%emt 0:02:26]} 50. Nf3 {[%emt 0:03:33]} Na3 {[%emt 0:01:19]} 51. Ne1 {[%emt 0:00:34]} Nb5 {[%emt 0:00:02]} 52. Nd3 {[%emt 0:04:45]} Na3 {[%emt 0:01:57]} 53. Ne1 {[%emt 0:02:51]} Nb5 {[%emt 0:00:03]} 54. Nf3 {[%emt 0:00:33]} Na3 {[%emt 0:00:05]} 1/2-1/2

[Event "Fagernes Chess GM-Swiss 2025"]
[Site "Fagernes"]
[Date "2025.04.16"]
[Round "4.25"]
[White "Skotheim, Andreas"]
[Black "Holand, Per Fredrik"]
[Result "1/2-1/2"]
[Annotator "ChessBase"]
[ECO "D30"]
[WhiteElo "2229"]
[BlackElo "2070"]
[PlyCount "208"]
[EventDate "2025.04.12"]
[EventCountry "NOR"]
[SourceTitle "playchess.com"]
[Source "ChessBase"]
[SourceQuality "1"]
[TimeControl "40/6000+30:2400+30"]

1. d4 {[%emt 0:00:14]} d5 {[%emt 0:01:42]} 2. c4 {[%emt 0:00:32]} c6 {[%emt 0:00:10]} 3. Nf3 {[%emt 0:00:31]} Nf6 {[%emt 0:00:09]} 4. e3 {[%emt 0:00:29]} e6 {[%emt 0:01:27]} 5. Nbd2 {[%emt 0:00:33]} Nbd7 {[%emt 0:00:41]} 6. Bd3 {[%emt 0:00:27]} Be7 {[%emt 0:01:15]} 7. O-O {[%emt 0:00:55]} O-O {[%emt 0:00:07]} 8. Qc2 {[%emt 0:00:57]} dxc4 {[%emt 0:03:18]} 9. Nxc4 {[%emt 0:01:04]} c5 {[%emt 0:00:44]} 10. Nce5 {[%emt 0:12:22]} cxd4 {[%emt 0:00:22]} 11. exd4 {[%emt 0:00:23]} h6 {[%emt 0:01:51]} 12. a3 {[%emt 0:04:24]} Nb6 {[%emt 0:02:11]} 13. Be3 {[%emt 0:03:19]} Nbd5 {[%emt 0:02:58]} 14. Qd2 {[%emt 0:03:23]} Nxe3 {[%emt 0:03:14]} 15. fxe3 {[%emt 0:00:29]} b6 {[%emt 0:01:45]} 16. Nc6 {[%emt 0:04:02]} Qd6 {[%emt 0:01:36]} 17. Nxe7+ {[%emt 0:12:36]} Qxe7 {[%emt 0:00:52]} 18. e4 {[%emt 0:00:57]} Bb7 {[%emt 0:06:24]} 19. Rae1 {[%emt 0:01:46]} Rad8 {[%emt 0:00:09]} 20. Qf2 {[%emt 0:04:50]} Nh7 {[%emt 0:02:33]} 21. Re3 {[%emt 0:16:15]} g6 {[%emt 0:13:38]} 22. h4 {[%emt 0:03:25]} Nf6 {[%emt 0:15:33]} 23. Qg3 {[%emt 0:04:51]} Nh5 {[%emt 0:02:32]} 24. Qh2 {[%emt 0:02:04]} Qd6 {[%emt 0:02:14]} 25. e5 {[%emt 0:04:39]} Qd7 {[%emt 0:02:15]} 26. Be4 {[%emt 0:02:25]} Bxe4 {[%emt 0:09:04]} 27. Rxe4 {[%emt 0:00:06]} Ng7 {[%emt 0:00:09]} 28. h5 {[%emt 0:04:05]} g5 {[%emt 0:00:30]} 29. g4 {[%emt 0:00:28]} Qd5 {[%emt 0:02:35]} 30. Qe2 {[%emt 0:03:16]} Rc8 {[%emt 0:01:25]} 31. Qd3 {[%emt 0:04:12]} f5 {[%emt 0:05:37]} 32. exf6 {[%emt 0:00:38]} Rxf6 {[%emt 0:00:07]} 33. Nd2 {[%emt 0:01:51]} Rxf1+ {[%emt 0:02:09]} 34. Nxf1 {[%emt 0:00:17]} Rf8 {[%emt 0:02:15]} 35. Nd2 {[%emt 0:03:42]} Qa2 {[%emt 0:00:46]} 36. Qb1 {[%emt 0:00:46]} Qxb1+ {[%emt 0:00:37]} 37. Nxb1 {[%emt 0:00:06]} Rf3 {[%emt 0:00:12]} 38. Nd2 {[%emt 0:03:19]} Rd3 {[%emt 0:00:21]} 39. Nf1 {[%emt 0:01:27]} Kf7 {[%emt 0:00:37]} 40. Ne3 {[%emt 0:05:33]} Ne8 {[%emt 0:03:14]} 41. Nc4 {[%emt 0:05:40]} Rd1+ {[%emt 0:00:22]} 42. Kf2 {[%emt 0:00:29]} Nf6 {[%emt 0:00:25]} 43. Ne5+ {[%emt 0:01:20]} Kg7 {[%emt 0:00:29]} 44. Re2 {[%emt 0:04:16]} Rxd4 {[%emt 0:00:35]} 45. Kf3 {[%emt 0:01:29]} Rf4+ {[%emt 0:02:36]} 46. Kg3 {[%emt 0:00:16]} Rf1 {[%emt 0:02:22]} 47. Nf3 {[%emt 0:06:32]} Kf7 {[%emt 0:02:06]} 48. Ne5+ {[%emt 0:00:31]} Ke7 {[%emt 0:00:49]} 49. Nc6+ {[%emt 0:01:05]} Kd6 {[%emt 0:00:52]} 50. Nd8 {[%emt 0:00:39]} Kd7 {[%emt 0:07:30]} 51. Nxe6 {[%emt 0:03:57]} Rg1+ {[%emt 0:00:10]} 52. Kf3 {[%emt 0:02:40]} Nxg4 {[%emt 0:02:54]} 53. Nf8+ {[%emt 0:02:32]} Kd6 {[%emt 0:00:32]} 54. Rd2+ {[%emt 0:02:22]} Kc6 {[%emt 0:04:27]} 55. Nd7 {[%emt 0:00:51]} a5 {[%emt 0:01:53]} 56. a4 {[%emt 0:02:27]} Kc7 {[%emt 0:00:20]} 57. b3 {[%emt 0:01:44]} Kc6 {[%emt 0:00:06]} 58. Ke4 {[%emt 0:00:31]} Rf1 {[%emt 0:01:26]} 59. Ne5+ {[%emt 0:01:02]} Nxe5 {[%emt 0:00:08]} 60. Kxe5 {[%emt 0:00:04]} Kc7 {[%emt 0:00:23]} 61. Ke6 {[%emt 0:03:17]} Rh1 {[%emt 0:00:38]} 62. Rc2+ {[%emt 0:00:26]} Kb7 {[%emt 0:00:56]} 63. Kd7 {[%emt 0:00:32]} Rd1+ {[%emt 0:01:02]} 64. Ke7 {[%emt 0:00:52]} b5 {[%emt 0:01:44]} 65. Rc5 {[%emt 0:02:12]} bxa4 {[%emt 0:00:12]} 66. bxa4 {[%emt 0:01:31]} Rh1 {[%emt 0:00:19]} 67. Rxa5 {[%emt 0:01:18]} Rxh5 {[%emt 0:00:16]} 68. Kf6 {[%emt 0:00:47]} Rh4 {[%emt 0:00:31]} 69. Kf5 {[%emt 0:01:29]} Kb6 {[%emt 0:00:18]} 70. Ra8 {[%emt 0:01:25]} Rc4 {[%emt 0:01:50]} 71. Kg6 {[%emt 0:01:24]} Rc6+ {[%emt 0:00:09]} 72. Kh5 {[%emt 0:00:09]} Kc5 {[%emt 0:00:11]} 73. Kg4 {[%emt 0:01:03]} Kb6 {[%emt 0:01:19]} 74. Kh5 {[%emt 0:00:16]} Kb7 {[%emt 0:00:05]} 75. Ra5 {[%emt 0:00:17]} Ra6 {[%emt 0:01:17]} 76. Rb5+ {[%emt 0:00:10]} Kc7 {[%emt 0:00:12]} 77. Rd5 {[%emt 0:02:05]} Rd6 {[%emt 0:00:19]} 78. Ra5 {[%emt 0:00:22]} Re6 {[%emt 0:06:08]} 79. Ra8 {[%emt 0:00:51]} Kd6 {[%emt 0:00:17]} 80. Ra5 {[%emt 0:00:30]} Kc7 {[%emt 0:02:18]} 81. Ra7+ {[%emt 0:00:49]} Kb6 {[%emt 0:00:28]} 82. Ra8 {[%emt 0:00:12]} Kc5 {[%emt 0:00:10]} 83. Ra7 {[%emt 0:00:29]} Kd4 {[%emt 0:00:46]} 84. Ra8 {[%emt 0:00:37]} Ke3 {[%emt 0:00:34]} 85. Rh8 {[%emt 0:01:13]} Kd4 {[%emt 0:03:06]} 86. Ra8 {[%emt 0:00:05]} Ke5 {[%emt 0:01:45]} 87. Kg4 {[%emt 0:00:32]} Rf6 {[%emt 0:00:43]} 88. Kh5 {[%emt 0:00:16]} Kf4 {[%emt 0:00:19]} 89. Rb8 {[%emt 0:01:09]} Ra6 {[%emt 0:00:33]} 90. Rb4+ {[%emt 0:00:17]} Ke3 {[%emt 0:00:50]} 91. Rb3+ {[%emt 0:00:16]} Kd4 {[%emt 0:00:13]} 92. Rb4+ {[%emt 0:00:24]} Kc3 {[%emt 0:01:27]} 93. Rb8 {[%emt 0:00:12]} Kc4 {[%emt 0:02:49]} 94. Rb7 {[%emt 0:00:18]} Kc5 {[%emt 0:04:21]} 95. Rb5+ {[%emt 0:00:16]} Kc4 {[%emt 0:07:38]} 96. Rb8 {[%emt 0:00:16]} Rd6 {[%emt 0:01:19]} 97. Rb5 {[%emt 0:00:44]} Kd4 {[%emt 0:01:00]} 98. a5 {[%emt 0:01:05]} Rd5 {[%emt 0:02:37]} 99. Rb6 {[%emt 0:00:15]} Ke3 {[%emt 0:02:30]} 100. Kg4 {[%emt 0:01:09]} Rd4+ {[%emt 0:00:24]} 101. Kh5 {[%emt 0:00:51]} Ra4 {[%emt 0:02:42]} 102. Rxh6 {[%emt 0:00:21]} Kf3 {[%emt 0:00:29]} 103. Rf6+ {[%emt 0:00:26]} Kg3 {[%emt 0:00:18]} 104. Kxg5 {[%emt 0:00:26]} Rxa5+ {[%emt 0:00:04]} 1/2-1/2

[Event "Fagernes Chess GM-Swiss 2025"]
[Site "Fagernes"]
[Date "2025.04.16"]
[Round "4.26"]
[White "Simonsen, David Mindestrommen"]
[Black "Westrum, Kim Roger Hansen"]
[Result "1-0"]
[Annotator "RC"]
[ECO "B30"]
[WhiteElo "2034"]
[BlackElo "2193"]
[PlyCount "47"]
[EventDate "2025.04.12"]
[EventCountry "NOR"]
[SourceTitle "playchess.com"]
[Source "ChessBase"]
[SourceQuality "1"]
[TimeControl "40/6000+30:2400+30"]

1. e4 {[%emt 0:00:07]} c5 {[%emt 0:01:44]} 2. Nf3 {[%emt 0:00:39]} Nc6 {[%emt 0:00:16]} 3. Bb5 {[%emt 0:00:10]} Nf6 {[%emt 0:00:25]} 4. Bxc6 {[%emt 0:00:54]} dxc6 {[%emt 0:00:09]} 5. d3 {[%emt 0:00:10]} Qc7 {[%emt 0:00:08]} 6. e5 {[%emt 0:02:22]} Nd5 {[%emt 0:00:31]} 7. c4 {[%emt 0:00:55]} Nb4 {[%emt 0:00:07]} 8. a3 {[%emt 0:00:32]} Na6 {[%emt 0:00:07]} 9. O-O {[%emt 0:05:54]} Bf5 {[%emt 0:01:55]} 10. Qe2 {[%emt 0:02:51]} Rd8 {[%emt 0:02:07]} 11. Rd1 {[%emt 0:01:43]} h6 {[%emt 0:00:11]} 12. Nc3 {[%emt 0:05:19]} g5 {[%emt 0:00:34]} 13. Ne4 {[%emt 0:01:28]} Be6 {[%emt 0:19:08]} 14. Bd2 {[%emt 0:15:37]} Bg7 {[%emt 0:03:23]} 15. Ng3 {[%emt 0:07:13]} O-O {[%emt 0:23:58]} 16. Bc3 {[%emt 0:11:42]} Qc8 {[%emt 0:17:25]} 17. Re1 {[%emt 0:07:15]} Bg4 {[%emt 0:01:51]} 18. h3 {[%emt 0:00:29]} Bxf3 {[%emt 0:00:21]} 19. Qxf3 {[%emt 0:00:08]} Nc7 {[%emt 0:00:09]} 20. Nf5 {[%emt 0:02:40]} Rfe8 {[%emt 0:04:03]} 21. e6 {[%emt 0:02:12]} f6 {[%emt 0:00:25]} 22. Qh5 {[%emt 0:02:41]} Kh7 {[%emt 0:02:02]} 23. Qf7 {[%emt 0:00:43]} Rg8 {[%emt 0:00:05]} 24. Nxe7 {[%emt 0:00:20]} 1-0

[Event "Fagernes Chess GM-Swiss 2025"]
[Site "Fagernes"]
[Date "2025.04.16"]
[Round "4.27"]
[White "Olsen, William Alexander"]
[Black "Haugen, Lars Tormod"]
[Result "1-0"]
[Annotator "RC"]
[ECO "B32"]
[WhiteElo "2188"]
[BlackElo "1988"]
[PlyCount "67"]
[EventDate "2025.04.12"]
[EventCountry "NOR"]
[SourceTitle "playchess.com"]
[Source "ChessBase"]
[SourceQuality "1"]
[TimeControl "40/6000+30:2400+30"]

1. e4 {[%emt 0:00:00]} c5 {[%emt 0:08:44]} 2. Nf3 {[%emt 0:00:06]} Nc6 {[%emt 0:00:03]} 3. d4 {[%emt 0:00:20]} cxd4 {[%emt 0:00:08]} 4. Nxd4 {[%emt 0:00:05]} e5 {[%emt 0:04:35]} 5. Nb5 {[%emt 0:04:56]} d6 {[%emt 0:00:09]} 6. N1c3 {[%emt 0:00:00]} a6 {[%emt 0:00:35]} 7. Na3 {[%emt 0:00:00]} Be7 {[%emt 0:00:46]} 8. Nd5 {[%emt 0:00:00]} Nf6 {[%emt 0:01:10]} 9. Be3 {[%emt 0:00:00]} Nxd5 {[%emt 0:21:23]} 10. exd5 {[%emt 0:00:00]} Nb8 {[%emt 0:02:23]} 11. Nc4 {[%emt 0:02:00]} Nd7 {[%emt 0:01:00]} 12. a4 {[%emt 0:00:15]} O-O {[%emt 0:04:45]} 13. g4 {[%emt 0:03:32]} Rb8 {[%emt 0:18:36]} 14. a5 {[%emt 0:10:12]} Nc5 {[%emt 0:12:16]} 15. b4 {[%emt 0:09:47]} Ne4 {[%emt 0:00:21]} 16. Bg2 {[%emt 0:00:14]} f5 {[%emt 0:04:37]} 17. Qd3 {[%emt 0:01:14]} Ng5 {[%emt 0:08:01]} 18. h4 {[%emt 0:19:19]} e4 {[%emt 0:00:22]} 19. Qb3 {[%emt 0:00:10]} Nf7 {[%emt 0:12:51]} 20. g5 {[%emt 0:00:56]} Bd7 {[%emt 0:01:07]} 21. Bd4 {[%emt 0:04:17]} Bb5 {[%emt 0:02:03]} 22. Nb6 {[%emt 0:02:21]} Kh8 {[%emt 0:03:36]} 23. c4 {[%emt 0:00:28]} Bd7 {[%emt 0:00:32]} 24. Qc3 {[%emt 0:01:58]} Ne5 {[%emt 0:01:30]} 25. Bxe5 {[%emt 0:01:35]} dxe5 {[%emt 0:00:03]} 26. Rd1 {[%emt 0:00:12]} Be8 {[%emt 0:00:56]} 27. d6 {[%emt 0:01:07]} Bxg5 {[%emt 0:00:26]} 28. hxg5 {[%emt 0:00:14]} Qxg5 {[%emt 0:00:27]} 29. Qh3 {[%emt 0:00:38]} h6 {[%emt 0:00:43]} 30. Qg3 {[%emt 0:02:08]} Qf6 {[%emt 0:00:33]} 31. d7 {[%emt 0:02:46]} Bf7 {[%emt 0:00:35]} 32. Qh4 {[%emt 0:01:15]} Be6 {[%emt 0:00:39]} 33. Qxf6 {[%emt 0:00:18]} gxf6 {[%emt 0:00:21]} 34. Rd6 {[%emt 0:00:10]} 1-0

[Event "Fagernes Chess GM-Swiss 2025"]
[Site "Fagernes"]
[Date "2025.04.16"]
[Round "4.28"]
[White "Stromhaug, Kristoffer Wang"]
[Black "Skaar, Ben Samuel Groth"]
[Result "1/2-1/2"]
[Annotator "RC"]
[ECO "C48"]
[WhiteElo "2020"]
[BlackElo "2167"]
[PlyCount "93"]
[EventDate "2025.04.12"]
[EventCountry "NOR"]
[SourceTitle "playchess.com"]
[Source "ChessBase"]
[SourceQuality "1"]
[TimeControl "40/6000+30:2400+30"]

1. e4 {[%emt 0:00:05]} e5 {[%emt 0:05:59]} 2. Nf3 {[%emt 0:00:05]} Nc6 {[%emt 0:00:04]} 3. Nc3 {[%emt 0:00:50]} Nf6 {[%emt 0:00:05]} 4. Bb5 {[%emt 0:00:21]} Nd4 {[%emt 0:05:38]} 5. O-O {[%emt 0:00:28]} c6 {[%emt 0:12:06]} 6. Bd3 {[%emt 0:00:48]} Nxf3+ {[%emt 0:01:09]} 7. Qxf3 {[%emt 0:00:07]} Bd6 {[%emt 0:00:11]} 8. a4 {[%emt 0:16:28]} O-O {[%emt 0:01:34]} 9. Bc4 {[%emt 0:03:21]} Bc7 {[%emt 0:06:37]} 10. d3 {[%emt 0:10:57]} h6 {[%emt 0:01:15]} 11. h3 {[%emt 0:03:50]} d6 {[%emt 0:05:24]} 12. Ba2 {[%emt 0:08:17]} Be6 {[%emt 0:03:14]} 13. Ne2 {[%emt 0:02:26]} Qe7 {[%emt 0:07:43]} 14. Ng3 {[%emt 0:04:25]} Rad8 {[%emt 0:07:40]} 15. Kh1 {[%emt 0:16:39]} Kh7 {[%emt 0:05:15]} 16. Nf5 {[%emt 0:09:01]} Bxf5 {[%emt 0:00:15]} 17. Qxf5+ {[%emt 0:00:12]} g6 {[%emt 0:00:07]} 18. Qf3 {[%emt 0:00:35]} Nh5 {[%emt 0:20:36]} 19. Qe3 {[%emt 0:05:17]} Nf4 {[%emt 0:00:04]} 20. Qxa7 {[%emt 0:04:23]} b6 {[%emt 0:00:08]} 21. Qa6 {[%emt 0:04:36]} g5 {[%emt 0:13:13]} 22. Bxf4 {[%emt 0:06:10]} exf4 {[%emt 0:00:42]} 23. f3 {[%emt 0:00:52]} h5 {[%emt 0:04:29]} 24. d4 {[%emt 0:03:19]} Qd7 {[%emt 0:01:59]} 25. Qd3 {[%emt 0:00:49]} Kg7 {[%emt 0:00:33]} 26. Kg1 {[%emt 0:03:48]} Rfe8 {[%emt 0:01:28]} 27. Rae1 {[%emt 0:00:43]} Ra8 {[%emt 0:00:16]} 28. Bb3 {[%emt 0:01:05]} f6 {[%emt 0:04:51]} 29. c3 {[%emt 0:01:06]} Kh6 {[%emt 0:00:27]} 30. Bc2 {[%emt 0:00:54]} Rg8 {[%emt 0:00:08]} 31. Kf2 {[%emt 0:00:57]} h4 {[%emt 0:00:20]} 32. Kg1 {[%emt 0:01:39]} Rae8 {[%emt 0:00:56]} 33. Rd1 {[%emt 0:01:18]} Rg7 {[%emt 0:00:58]} 34. Rfe1 {[%emt 0:00:30]} Qc8 {[%emt 0:01:12]} 35. Qc4 {[%emt 0:00:42]} Qb7 {[%emt 0:00:43]} 36. Qd3 {[%emt 0:00:47]} Qc8 {[%emt 0:00:05]} 37. b4 {[%emt 0:00:18]} Qe6 {[%emt 0:00:57]} 38. d5 {[%emt 0:00:42]} cxd5 {[%emt 0:00:25]} 39. Qxd5 {[%emt 0:00:06]} Qxd5 {[%emt 0:00:26]} 40. Rxd5 {[%emt 0:00:41]} Rge7 {[%emt 0:00:45]} 41. c4 {[%emt 0:40:46]} Kg7 {[%emt 0:40:25]} 42. Red1 {[%emt 0:00:00]} Re5 {[%emt 0:00:00]} 43. Kf1 {[%emt 0:00:00]} Kf8 {[%emt 0:00:00]} 44. Bb1 {[%emt 0:00:00]} Ra8 {[%emt 0:00:00]} 45. Bc2 {[%emt 0:00:00]} Rae8 {[%emt 0:00:00]} 46. Bb1 {[%emt 0:00:00]} Ra8 {[%emt 0:00:00]} 47. Bc2 {[%emt 0:00:00]} 1/2-1/2

[Event "Fagernes Chess GM-Swiss 2025"]
[Site "Fagernes"]
[Date "2025.04.16"]
[Round "4.29"]
[White "Kaewpitakkun, Pantham"]
[Black "Aamodt, Peder Marcus"]
[Result "0-1"]
[Annotator "RC"]
[ECO "C11"]
[WhiteElo "2026"]
[BlackElo "2242"]
[PlyCount "72"]
[EventDate "2025.04.12"]
[EventCountry "NOR"]
[SourceTitle "playchess.com"]
[Source "ChessBase"]
[SourceQuality "1"]
[TimeControl "40/6000+30:2400+30"]

1. e4 {[%emt 0:00:03]} e6 {[%emt 0:03:35]} 2. d4 {[%emt 0:00:11]} d5 {[%emt 0:00:05]} 3. Nc3 {[%emt 0:00:17]} Nf6 {[%emt 0:00:06]} 4. e5 {[%emt 0:00:25]} Nfd7 {[%emt 0:00:05]} 5. f4 {[%emt 0:00:29]} c5 {[%emt 0:00:07]} 6. Nf3 {[%emt 0:00:22]} Nc6 {[%emt 0:00:05]} 7. Be3 {[%emt 0:00:36]} Rb8 {[%emt 0:00:06]} 8. Qd2 {[%emt 0:04:28]} Qa5 {[%emt 0:00:11]} 9. dxc5 {[%emt 0:05:55]} Bxc5 {[%emt 0:02:08]} 10. Nd4 {[%emt 0:02:52]} Nxd4 {[%emt 0:05:03]} 11. Bxd4 {[%emt 0:00:09]} b5 {[%emt 0:00:43]} 12. Bxc5 {[%emt 0:17:32]} Nxc5 {[%emt 0:00:09]} 13. Nxb5 {[%emt 0:01:46]} Rxb5 {[%emt 0:05:48]} 14. Qxa5 {[%emt 0:00:28]} Rxa5 {[%emt 0:00:05]} 15. b4 {[%emt 0:00:07]} Ra4 {[%emt 0:02:42]} 16. bxc5 {[%emt 0:00:28]} Re4+ {[%emt 0:03:18]} 17. Kd1 {[%emt 0:01:19]} Rxf4 {[%emt 0:00:07]} 18. Bd3 {[%emt 0:00:49]} Ke7 {[%emt 0:06:11]} 19. Ke2 {[%emt 0:01:56]} Ra4 {[%emt 0:03:08]} 20. Rhb1 {[%emt 0:01:14]} Ra5 {[%emt 0:00:58]} 21. Rb5 {[%emt 0:04:38]} Rxb5 {[%emt 0:00:17]} 22. Bxb5 {[%emt 0:00:08]} Bd7 {[%emt 0:00:49]} 23. Bxd7 {[%emt 0:04:11]} Kxd7 {[%emt 0:01:24]} 24. Rb1 {[%emt 0:03:10]} Kc6 {[%emt 0:00:09]} 25. Kd3 {[%emt 0:00:43]} f6 {[%emt 0:01:25]} 26. Re1 {[%emt 0:03:45]} f5 {[%emt 0:06:39]} 27. Rb1 {[%emt 0:03:08]} g5 {[%emt 0:05:34]} 28. Kd4 {[%emt 0:02:48]} f4 {[%emt 0:01:52]} 29. Rb3 {[%emt 0:01:41]} g4 {[%emt 0:01:10]} 30. Ra3 {[%emt 0:01:54]} Rf8 {[%emt 0:02:34]} 31. Rb3 {[%emt 0:10:23]} f3 {[%emt 0:01:54]} 32. gxf3 {[%emt 0:00:08]} gxf3 {[%emt 0:00:28]} 33. Rb1 {[%emt 0:00:08]} f2 {[%emt 0:00:11]} 34. Rf1 {[%emt 0:00:05]} Rf3 {[%emt 0:01:19]} 35. c4 {[%emt 0:02:36]} dxc4 {[%emt 0:01:39]} 36. Kxc4 {[%emt 0:00:25]} Rf4+ {[%emt 0:00:05]} 0-1

[Event "Fagernes Chess GM-Swiss 2025"]
[Site "Fagernes"]
[Date "2025.04.16"]
[Round "4.30"]
[White "Hebbar, Eshaan"]
[Black "Wernberg, Nikolai Olsen"]
[Result "1-0"]
[Annotator "RC"]
[ECO "A70"]
[WhiteElo "2175"]
[BlackElo "1893"]
[PlyCount "93"]
[EventDate "2025.04.12"]
[EventCountry "NOR"]
[SourceTitle "playchess.com"]
[Source "ChessBase"]
[SourceQuality "1"]
[TimeControl "40/6000+30:2400+30"]

1. d4 {[%emt 0:00:05]} Nf6 {[%emt 0:00:12]} 2. c4 {[%emt 0:00:03]} c5 {[%emt 0:00:13]} 3. d5 {[%emt 0:00:04]} e6 {[%emt 0:00:07]} 4. Nc3 {[%emt 0:00:03]} exd5 {[%emt 0:00:07]} 5. cxd5 {[%emt 0:00:02]} d6 {[%emt 0:00:07]} 6. e4 {[%emt 0:00:05]} g6 {[%emt 0:00:08]} 7. Nf3 {[%emt 0:00:03]} a6 {[%emt 0:00:22]} 8. a4 {[%emt 0:00:07]} Bg4 {[%emt 0:00:21]} 9. Be2 {[%emt 0:00:25]} Bxf3 {[%emt 0:00:35]} 10. Bxf3 {[%emt 0:00:03]} Bg7 {[%emt 0:01:15]} 11. O-O {[%emt 0:00:26]} O-O {[%emt 0:01:29]} 12. Re1 {[%emt 0:10:29]} Nbd7 {[%emt 0:02:55]} 13. Qc2 {[%emt 0:04:12]} Rb8 {[%emt 0:06:51]} 14. a5 {[%emt 0:00:19]} Ne8 {[%emt 0:06:33]} 15. Be2 {[%emt 0:02:37]} Nc7 {[%emt 0:01:22]} 16. Bf1 {[%emt 0:02:19]} Re8 {[%emt 0:01:53]} 17. Bf4 {[%emt 0:01:54]} Ne5 {[%emt 0:02:25]} 18. h3 {[%emt 0:00:16]} b5 {[%emt 0:01:37]} 19. axb6 {[%emt 0:00:07]} Rxb6 {[%emt 0:00:08]} 20. Bg3 {[%emt 0:08:10]} Nb5 {[%emt 0:06:15]} 21. Rxa6 {[%emt 0:07:00]} Nd4 {[%emt 0:00:30]} 22. Qc1 Rxa6 {[%emt 0:00:30]} 23. Bxa6 {[%emt 0:01:00]} Qb6 {[%emt 0:05:20]} 24. Bf1 {[%emt 0:00:40]} f6 {[%emt 0:11:54]} 25. f4 {[%emt 0:02:35]} Nd7 {[%emt 0:01:18]} 26. Kh2 {[%emt 0:01:04]} Rb8 {[%emt 0:02:53]} 27. Nd1 {[%emt 0:01:07]} Qb4 {[%emt 0:05:11]} 28. Qc3 {[%emt 0:01:36]} Qa4 {[%emt 0:02:31]} 29. Qc4 {[%emt 0:07:04]} Rb4 {[%emt 0:07:18]} 30. Qa6 {[%emt 0:02:44]} Qxa6 {[%emt 0:01:00]} 31. Bxa6 {[%emt 0:00:02]} Nc2 {[%emt 0:08:44]} 32. Re2 {[%emt 0:00:29]} Nd4 {[%emt 0:00:19]} 33. Re3 {[%emt 0:06:57]} Nc2 {[%emt 0:00:38]} 34. Rc3 {[%emt 0:00:34]} Nd4 {[%emt 0:00:20]} 35. Rc4 {[%emt 0:01:15]} Rb3 {[%emt 0:06:34]} 36. Bf2 {[%emt 0:06:15]} Nb6 {[%emt 0:03:19]} 37. Rc3 {[%emt 0:01:00]} Rb4 {[%emt 0:00:35]} 38. Be1 {[%emt 0:05:10]} f5 {[%emt 0:05:10]} 39. Ra3 {[%emt 0:00:29]} Ra4 {[%emt 0:00:56]} 40. Ba5 {[%emt 0:01:03]} Nc2 {[%emt 0:02:43]} 41. Rxa4 {[%emt 0:40:17]} Nxa4 {[%emt 0:40:07]} 42. b3 {[%emt 0:00:52]} Nb2 {[%emt 0:01:04]} 43. Nxb2 {[%emt 0:00:10]} Bxb2 {[%emt 0:00:06]} 44. exf5 {[%emt 0:00:05]} Bd4 {[%emt 0:02:47]} 45. fxg6 {[%emt 0:00:30]} hxg6 {[%emt 0:00:11]} 46. Bc7 {[%emt 0:00:14]} Ne3 {[%emt 0:00:18]} 47. g4 {[%emt 0:00:32]} 1-0